fUSD/lending_fUSD_20260118
["ID","MTS","AMOUNT","RATE_DAILY","PERIOD"]
[402645138,1768744232744,-178.10337364,0.0001544,2]
[402645139,1768744232753,-500.0,0.0001544,2]
[402645140,1768744232762,-280.67302052,0.0001544,2]
[402645141,1768744232771,-201.51741197,0.0001544,2]
[402645142,1768744232781,-909.69,0.0001544,2]
[402645143,1768744232790,-32213.53699465,0.00015441,2]
[402645144,1768744232803,-703.96192003,0.00015441,2]
[402645145,1768744232814,-2064.94711756,0.00015441,2]
[402645146,1768744232824,-1848.46471605,0.00015441,2]
[402645147,1768744232835,-1300.0,0.00015441,2]
[402645148,1768744234746,-2724.82714838,0.00015441,2]
[402645149,1768744234756,-1294.04,0.00015444,2]
[402645150,1768744234766,-1618.9,0.00015453,2]
[402645151,1768744234776,-483.79,0.000155,2]
[402645152,1768744234785,-662.88,0.000155,2]
[402645153,1768744234798,-483.79,0.000155,2]
[402645154,1768744234816,-662.88,0.000155,2]
[402645155,1768744234826,-483.79,0.000155,2]
[402645156,1768744234835,-662.88,0.000155,2]
[402645157,1768744234845,-1300.0,0.000156,2]
[402645158,1768744234854,-508.42,0.000156,2]
[402645159,1768744234864,-483.68,0.000156,2]
[402645160,1768744234873,-285.12441334,0.00015626,2]
[402645161,1768744234883,-500.0,0.00015626,2]
[402645162,1768744234892,-239.03553082,0.00015627,2]
[402645163,1768744234902,-151.0,0.00015643,2]
[402645164,1768744234911,-151.0,0.00015643,2]
[402645165,1768744234920,-500.0,0.00015681,2]
[402645166,1768744234930,-1294.04,0.00015718,2]
[402645167,1768744234939,-500.0,0.00015736,2]
[402645168,1768744234949,-500.0,0.0001579,2]
[402645169,1768744234959,-500.0,0.00015845,2]
[402645170,1768744234968,-500.0,0.000159,2]
[402645171,1768744234977,-373.22,0.00015918,2]
[402645172,1768744234986,-500.0,0.00015955,2]
[402645173,1768744234996,-500.62039903,0.00015973,2]
[402645174,1768744235005,-525.58193812,0.00015973,2]
[402645175,1768744235015,-503.71984684,0.00015973,2]
[402645176,1768744235024,-500.0,0.00015973,2]
[402645177,1768744235033,-501.01001678,0.00015973,2]
[402645178,1768744235043,-500.41908961,0.00015973,2]
[402645179,1768744235052,-500.0,0.00015973,2]
[402645180,1768744235061,-500.0,0.00015973,2]
[402645181,1768744235071,-500.0,0.00015973,2]
[402645182,1768744235080,-502.14924214,0.00015973,2]
[402645183,1768744235089,-500.0,0.00015973,2]
[402645184,1768744235099,-500.0,0.00015973,2]
[402645185,1768744235108,-1294.04,0.00015992,2]
[402645186,1768744235118,-8653.56850596,0.00016005,2]
[402645187,1768744235128,-500.0,0.0001601,2]
[402645188,1768744235138,-500.0,0.00016064,2]
[402645189,1768744235147,-500.0,0.00016068,2]
[402645190,1768744235156,-538.02487405,0.00016119,2]
[402645191,1768744235166,-4915.3523789,0.0001617,2]
[402645192,1768744235175,-4911.87474459,0.00016171,2]
[402645193,1768744235185,-150.0,0.000162,2]
[402645194,1768744235194,-150.0,0.000162,2]
[402645195,1768744235203,-150.0,0.000162,2]
[402645196,1768744235213,-150.0,0.000162,2]
[402645197,1768744235222,-150.0,0.000162,2]
[402645198,1768744235232,-150.0,0.000162,2]
[402645199,1768744235241,-150.0,0.000162,2]
[402645200,1768744235252,-150.39481531,0.000162,2]
[402645201,1768744235261,-150.62813761,0.000162,2]
[402645202,1768744235271,-150.0,0.000162,2]
[402645203,1768744235281,-150.48546304,0.000162,2]
[402645204,1768744235291,-170.37649707,0.000162,2]
[402645205,1768744235300,-150.0,0.000162,2]
[402645206,1768744235309,-150.0,0.000162,2]
[402645207,1768744235319,-909.69,0.00016212,2]
[402645208,1768744235329,-1294.04,0.00016266,2]
[402645209,1768744235338,-313.90384653,0.00016356,2]
[402645210,1768744235348,-1000.0,0.00016438,2]
[402645211,1768744235358,-1000.0,0.00016438,2]
[402645212,1768744235368,-671.44774677,0.00016438,2]
[402645213,1768744235377,-212.23328331,0.00016438,2]
[402645214,1768744235387,-500.0,0.00016438,2]
[402645215,1768744235396,-500.0,0.00016438,2]
[402645216,1768744235406,-500.0,0.00016438,2]
[402645217,1768744235415,-500.0,0.00016438,2]
[402645218,1768744235587,-500.0,0.00016438,2]
[402645219,1768744235633,-500.0,0.00016438,2]
[402645220,1768744235642,-500.0,0.00016438,2]
[402645221,1768744235652,-500.0,0.00016438,2]
[402645222,1768744235663,-500.0,0.00016438,2]
[402645223,1768744235672,-500.0,0.00016438,2]
[402645224,1768744235682,-500.0,0.00016438,2]
[402645225,1768744235697,-500.0,0.00016438,2]
[402645226,1768744235706,-500.0,0.00016438,2]
[402645227,1768744235715,-500.0,0.00016438,2]
[402645228,1768744235724,-500.0,0.00016438,2]
[402645229,1768744235734,-500.0,0.00016438,2]
[402645230,1768744235743,-500.0,0.00016438,2]
[402645231,1768744235754,-500.0,0.00016438,2]
[402645232,1768744235764,-500.0,0.00016438,2]
[402645233,1768744235774,-500.0,0.00016438,2]
[402645234,1768744235783,-500.0,0.00016438,2]
[402645235,1768744235793,-500.0,0.00016438,2]
[402645236,1768744235802,-500.0,0.00016438,2]
[402645237,1768744235812,-500.0,0.00016438,2]
[402645238,1768744235822,-500.0,0.00016438,2]
[402645239,1768744235831,-500.0,0.00016438,2]
[402645240,1768744235841,-500.0,0.00016438,2]
[402645241,1768744235851,-500.0,0.00016438,2]
[402645242,1768744235860,-500.0,0.00016438,2]
[402645243,1768744235871,-504.31183971,0.00016438,2]
[402645244,1768744235881,-500.0,0.00016438,2]
[402645245,1768744235891,-500.0,0.00016438,2]
[402645246,1768744235900,-500.0,0.00016438,2]
[402645247,1768744235909,-600.0,0.00016438,2]
[402645248,1768744235919,-926.0,0.00016438,2]
[402645249,1768744235928,-555.23117216,0.00016438,2]
[402645250,1768744235937,-5074.53355401,0.00016468,2]
[402645251,1768744235946,-250.0,0.00016468,2]
[402645252,1768744235956,-195.0,0.00016468,2]
[402645253,1768744235965,-300.0,0.000165,2]
[402645254,1768744235975,-195.0,0.000165,2]
[402645255,1768744235985,-600.0,0.000165,2]
[402645256,1768744235993,-2500.0,0.000165,2]
[402645257,1768744236001,-373.22,0.00016515,2]
[402645258,1768744236009,-523.5788245,0.00016521,2]
[402645259,1768744236017,-500.0,0.00016521,2]
[402645260,1768744236025,-1000.0,0.00016521,2]
[402645261,1768744236033,-1000.0,0.00016521,2]
[402645262,1768744236040,-1000.0,0.00016521,2]
[402645263,1768744236050,-1000.0,0.00016521,2]
[402645264,1768744236060,-1294.04,0.0001654,2]
[402645265,1768744236070,-420.0,0.00016598,2]
[402645266,1768744236079,-1255.0,0.000166,3]
[402645267,1768744236088,-1680.0,0.00016682,2]
[402645268,1768744236097,-600.0,0.00016712,2]
[402645269,1768744236106,-500.0,0.0001674,2]
[402645270,1768744236116,-327.46,0.00016748,2]
[402645271,1768744236126,-1294.04,0.00016814,2]
[402645272,1768744236136,-5700.12753713,0.00016857,2]
[402645273,1768744236145,-500.0,0.00016957,2]
[402645274,1768744236156,-500.0,0.00016957,2]
[402645275,1768744236166,-500.0,0.00016957,2]
[402645276,1768744236176,-5700.12753708,0.00016973,2]
[402645277,1768744236185,-909.69,0.00016984,2]
[402645278,1768744236195,-600.0,0.00016986,2]
[402645279,1768744236205,-500.0,0.00017,7]
[402645280,1768744236215,-500.0,0.00017,7]
[402645281,1768744236225,-500.0,0.00017,7]
[402645282,1768744236234,-500.0,0.00017,7]
[402645283,1768744236244,-500.0,0.00017,7]
[402645284,1768744236254,-500.0,0.00017,7]
[402645285,1768744236263,-500.0,0.00017,7]
[402645286,1768744236273,-500.0,0.00017,7]
[402645287,1768744236282,-500.0,0.00017,7]
[402645288,1768744236292,-500.0,0.00017,7]
[402645289,1768744236302,-500.0,0.00017,7]
[402645290,1768744236311,-500.0,0.00017,7]
[402645291,1768744236320,-500.0,0.00017,7]
[402645292,1768744236330,-500.0,0.00017,7]
[402645293,1768744236340,-500.0,0.00017,7]
[402645294,1768744236350,-500.0,0.00017,7]
[402645295,1768744236360,-500.0,0.00017,7]
[402645296,1768744236370,-500.0,0.00017,7]
[402645297,1768744236380,-500.0,0.00017,7]
[402645298,1768744236390,-500.0,0.00017,7]
[402645299,1768744236400,-500.0,0.00017,7]
[402645300,1768744236409,-500.0,0.00017,7]
[402645301,1768744236419,-500.0,0.00017,7]
[402645302,1768744236428,-500.0,0.00017,7]
[402645303,1768744236438,-500.0,0.00017,7]
[402645304,1768744236447,-500.0,0.00017,7]
[402645305,1768744236456,-500.0,0.00017,7]
[402645306,1768744236466,-500.0,0.00017,7]
[402645307,1768744236475,-500.0,0.00017,7]
[402645308,1768744236485,-500.0,0.00017,7]
[402645309,1768744236494,-500.0,0.00017,7]
[402645310,1768744236504,-500.0,0.00017,7]
[402645311,1768744236513,-500.0,0.00017,7]
[402645312,1768744236523,-500.0,0.00017,7]
[402645313,1768744236532,-500.0,0.00017,7]
[402645314,1768744236542,-500.0,0.00017,7]
[402645315,1768744236551,-308.5,0.00017,7]
[402645316,1768744236560,-500.0,0.00017,7]
[402645317,1768744236570,-500.0,0.00017,7]
[402645318,1768744236579,-500.0,0.00017,7]
[402645319,1768744236589,-500.0,0.00017,7]
[402645320,1768744236598,-500.0,0.00017,7]
[402645321,1768744236607,-500.0,0.00017,7]
[402645322,1768744236617,-500.0,0.00017,7]
[402645323,1768744236628,-500.0,0.00017,7]
[402645324,1768744236637,-500.0,0.00017,7]
[402645325,1768744236647,-500.0,0.00017,7]
[402645326,1768744236656,-500.0,0.00017,7]
[402645327,1768744236666,-500.0,0.00017,7]
[402645328,1768744236675,-500.0,0.00017,7]
[402645329,1768744236684,-500.0,0.00017,7]
[402645330,1768744236694,-500.0,0.00017,7]
[402645331,1768744236703,-500.0,0.00017,7]
[402645332,1768744236713,-500.0,0.00017,7]
[402645333,1768744236723,-500.0,0.00017,7]
[402645334,1768744236732,-500.0,0.00017,7]
[402645335,1768744236741,-500.0,0.00017,7]
[402645336,1768744236751,-500.0,0.00017,7]
[402645337,1768744236760,-500.0,0.00017,7]
[402645338,1768744236769,-500.0,0.00017,7]
[402645339,1768744236778,-500.0,0.00017,7]
[402645340,1768744236788,-500.0,0.00017,7]
[402645341,1768744236797,-500.0,0.00017,7]
[402645342,1768744236806,-500.0,0.00017,7]
[402645343,1768744236815,-500.0,0.00017,7]
[402645344,1768744236825,-500.0,0.00017,7]
[402645345,1768744236835,-500.0,0.00017,7]
[402645346,1768744236845,-500.0,0.00017,7]
[402645347,1768744236855,-500.0,0.00017,7]
[402645348,1768744236864,-500.0,0.00017,7]
[402645349,1768744236876,-500.0,0.00017,7]
[402645350,1768744236885,-500.0,0.00017,7]
[402645351,1768744236895,-500.0,0.00017,7]
[402645352,1768744236904,-500.0,0.00017,7]
[402645353,1768744236913,-500.0,0.00017,7]
[402645354,1768744236923,-500.0,0.00017,7]
[402645355,1768744236932,-500.0,0.00017,7]
[402645356,1768744236942,-500.0,0.00017,7]
[402645357,1768744236953,-500.0,0.00017,7]
[402645358,1768744236963,-500.0,0.00017,7]
[402645359,1768744236972,-500.0,0.00017,7]
[402645360,1768744236982,-500.0,0.00017,7]
[402645361,1768744236991,-500.0,0.00017,7]
[402645362,1768744237000,-500.0,0.00017,7]
[402645363,1768744237010,-500.0,0.00017,7]
[402645364,1768744237019,-500.0,0.00017,7]
[402645365,1768744237028,-500.0,0.00017,7]
[402645366,1768744237037,-500.0,0.00017,7]
[402645367,1768744237047,-500.0,0.00017,7]
[402645368,1768744237056,-500.0,0.00017,7]
[402645369,1768744237066,-500.0,0.00017,7]
[402645370,1768744237076,-500.0,0.00017,7]
[402645371,1768744237085,-500.0,0.00017,7]
[402645372,1768744237094,-500.0,0.00017,7]
[402645373,1768744237103,-500.0,0.00017,7]
[402645374,1768744237113,-500.0,0.00017,7]
[402645375,1768744237122,-500.0,0.00017,7]
[402645376,1768744237131,-500.0,0.00017,7]
[402645377,1768744237140,-500.0,0.00017,7]
[402645378,1768744237150,-500.0,0.00017,7]
[402645379,1768744237159,-512.58,0.00017,7]
[402645380,1768744237170,-250.0,0.00017,2]
[402645381,1768744237179,-1500.0,0.00017068,2]
[402645382,1768744237188,-1500.0,0.00017068,2]
[402645383,1768744237197,-1500.0,0.00017068,2]
[402645384,1768744237207,-1382.76820555,0.00017068,2]
[402645385,1768744237217,-23794.63716949,0.00017083,2]
[402645386,1768744237606,-292.99923312,0.00017083,2]
[402645387,1768744237632,-534.87788,0.00017083,2]
[402645391,1768744238464,-151.0,0.00015906,2]
[402645393,1768744238475,-177.31959918,0.00017083,2]
[402645395,1768744238488,-40530.83768424,0.00017083,2]
[402645397,1768744238503,-57432.61854167,0.00017083,2]
[402645400,1768744238515,-964.0942,0.00017083,2]
[402645542,1768744240236,-151.0,0.00015906,2]
[402645544,1768744240246,-25148.9718996,0.00017083,2]
[402645546,1768744240260,-1294.04,0.00017088,2]
[402645549,1768744240270,-5700.12753708,0.00017089,2]
[402645551,1768744240280,-660.99739858,0.00017099,2]
[402645553,1768744240290,-4001.0,0.00017099,2]
[402645554,1768744240299,-574.12855637,0.00017099,2]
[402645557,1768744240309,-151.0,0.00017099,2]
[402645559,1768744240319,-151.0,0.00017099,2]
[402645561,1768744240328,-151.0,0.00017099,2]
[402645563,1768744240337,-151.0,0.00017099,2]
[402645565,1768744240347,-151.0,0.00017099,2]
[402645567,1768744240357,-151.0,0.00017099,2]
[402645569,1768744240367,-151.0,0.00017099,2]
[402645571,1768744240377,-151.0,0.00017099,2]
[402645573,1768744240387,-151.0,0.00017099,2]
[402645575,1768744240398,-151.0,0.00017099,2]
[402645577,1768744240408,-151.0,0.00017099,2]
[402645579,1768744240418,-150.0,0.000171,2]
[402645581,1768744240427,-150.0,0.000171,2]
[402645583,1768744240438,-150.0,0.000171,2]
[402645585,1768744240447,-150.0,0.000171,2]
[402645587,1768744240456,-150.0,0.000171,2]
[402645589,1768744240466,-150.0,0.000171,2]
[402645591,1768744240475,-5888.0,0.00017111,2]
[402645593,1768744240484,-373.22,0.00017112,2]
[402645595,1768744240494,-35237.0049158,0.00017155,2]
[402645597,1768744240503,-2503.0,0.00017161,2]
[402645599,1768744240512,-2503.0,0.00017163,2]
[402645601,1768744240522,-164.45281015,0.00017165,2]
[402645603,1768744240532,-252.7581849,0.00017184,2]
[402645605,1768744240543,-5700.12753708,0.00017205,2]
[402645607,1768744240552,-150.0,0.00017247,2]
[402645609,1768744240561,-600.0,0.0001726,2]
[402645611,1768744240571,-1000.0,0.0001726,2]
[402645613,1768744240581,-2503.0,0.00017288,2]
[402645615,1768744240590,-5700.12753708,0.00017321,2]
[402645617,1768744240602,-391.4262,0.00017334,2]
[402645619,1768744240612,-1294.04,0.00017362,2]
[402645621,1768744240627,-5700.12753708,0.00017436,2]
[402645623,1768744240637,-2000.0,0.000175,2]
[402645625,1768744240646,-5888.0,0.00017517,2]
[402645627,1768744240656,-2503.0,0.00017525,2]
[402645629,1768744240667,-600.0,0.00017534,2]
[402645631,1768744240677,-1000.0,0.00017534,2]
[402645633,1768744240686,-5700.12753708,0.00017552,2]
[402645635,1768744240696,-13653.093585,0.00017562,2]
[402645637,1768744240706,-21932.77264086,0.0001757,2]
[402645639,1768744240715,-2503.0,0.00017588,2]
[402645641,1768744240724,-2503.0,0.00017597,2]
[402645643,1768744240733,-1000.0,0.00017616,2]
[402645645,1768744240743,-2000.0,0.00017616,2]
[402645647,1768744240752,-500.0,0.00017616,2]
[402645649,1768744240761,-1294.04,0.00017636,2]
[402645651,1768744240771,-3357.38762845,0.0001764,2]
[402645653,1768744240781,-595.37131296,0.00017647,2]
[402645655,1768744240790,-5700.12753708,0.00017668,2]
[402645657,1768744240800,-833.0,0.0001768,2]
[402645659,1768744240809,-150.0,0.00017698,2]
[402645661,1768744240820,-150.0,0.00017698,2]
[402645663,1768744240829,-500.0,0.00017698,2]
[402645665,1768744240838,-160.85120225,0.00017698,2]
[402645667,1768744240847,-250.17696529,0.00017698,2]
[402645669,1768744240857,-1118.51606834,0.000177,2]
[402645671,1768744240866,-1349.0,0.000177,2]
[402645674,1768744240876,-373.22,0.00017709,2]
[402645676,1768744240885,-8479.56081103,0.0001774,2]
[402645678,1768744240894,-1000.0,0.00017742,2]
[402645680,1768744240903,-1000.0,0.00017746,2]
[402645682,1768744240913,-1000.0,0.00017752,2]
[402645684,1768744240924,-153.00604463,0.00017753,2]
[402645686,1768744240933,-150.0,0.00017753,2]
[402645688,1768744240942,-500.0,0.00017753,2]
[402645690,1768744240952,-909.69,0.00017756,2]
[402645692,1768744240961,-8479.56081103,0.0001776,2]
[402645694,1768744240971,-1000.0,0.00017768,2]
[402645696,1768744240980,-1000.0,0.00017768,2]
[402645698,1768744240989,-1000.0,0.00017771,2]
[402645700,1768744241002,-1000.0,0.00017779,2]
[402645702,1768744241011,-1000.0,0.0001778,2]
[402645704,1768744241020,-1000.0,0.0001778,2]
[402645706,1768744241030,-8479.56081103,0.0001778,2]
[402645708,1768744241040,-201.0,0.00017781,2]
[402645710,1768744241049,-1000.0,0.00017782,2]
[402645712,1768744241059,-5700.12753708,0.00017784,2]
[402645714,1768744241068,-1000.0,0.00017785,2]
[402645716,1768744241078,-1000.0,0.00017786,2]
[402645718,1768744241087,-150.0,0.00017786,2]
[402645720,1768744241097,-1000.0,0.00017791,2]
[402645722,1768744241106,-1000.0,0.00017792,2]
[402645724,1768744241116,-1000.0,0.00017796,2]
[402645726,1768744241125,-150.0,0.00017796,2]
[402645728,1768744241134,-1000.0,0.00017799,2]
[402645730,1768744241143,-8479.56081103,0.000178,2]
[402645732,1768744241153,-1000.0,0.000178,2]
[402645734,1768744241162,-1000.0,0.00017806,2]
[402645736,1768744241172,-150.0,0.00017808,2]
[402645738,1768744241181,-501.86548223,0.00017808,2]
[402645741,1768744241195,-500.0,0.00017808,2]
[402645743,1768744241204,-600.0,0.00017808,2]
[402645745,1768744241213,-1000.0,0.00017808,2]
[402645746,1768744241223,-1000.0,0.0001781,2]
[402645749,1768744241232,-8479.56081103,0.0001782,2]
[402645751,1768744241242,-246.91358,0.0001782,2]
[402645753,1768744241251,-246.91358,0.0001782,2]
[402645754,1768744241261,-246.91358,0.0001782,2]
[402645756,1768744241270,-246.91358,0.0001782,2]
[402645758,1768744241280,-150.0,0.00017827,2]
[402645760,1768744241290,-150.0,0.00017831,2]
[402645762,1768744241299,-1141.50828975,0.00017835,2]
[402645764,1768744241309,-320.392,0.00017838,2]
[402645766,1768744241318,-1000.0,0.0001784,2]
[402645768,1768744241327,-8479.56081103,0.0001784,2]
[402645770,1768744241337,-1000.0,0.00017848,2]
[402645772,1768744241346,-1000.0,0.00017849,2]
[402645774,1768744241356,-200.0,0.00017856,2]
[402645776,1768744241366,-1000.0,0.00017857,2]
[402645778,1768744241376,-1000.0,0.00017859,2]
[402645781,1768744241386,-8479.56081103,0.0001786,2]
[402645783,1768744241398,-150.0,0.00017862,2]
[402645785,1768744241407,-500.0,0.00017863,2]
[402645787,1768744241417,-5800.0,0.00017874,2]
[402645789,1768744241427,-4030.0,0.00017879,2]
[402645791,1768744241436,-8479.56081103,0.0001788,2]
[402645793,1768744241445,-1000.0,0.00017896,2]
[402645795,1768744241456,-567.8712304,0.000179,2]
[402645797,1768744241466,-10000.0,0.000179,2]
[402645799,1768744241475,-1057.4943699,0.000179,2]
[402645801,1768744241485,-8479.56081103,0.000179,2]
[402645803,1768744241494,-5700.12753708,0.000179,2]
[402645805,1768744241504,-420.67489572,0.000179,2]
[402645807,1768744241514,-1249.39886294,0.000179,2]
[402645809,1768744241523,-211.61539095,0.000179,3]
[402645811,1768744241532,-2480.83969998,0.000179,2]
[402645813,1768744241542,-467.49211515,0.000179,2]
[402645815,1768744241551,-467.49211501,0.000179,2]
[402645817,1768744241560,-467.49211501,0.000179,2]
[402645819,1768744241570,-500.0,0.000179,2]
[402645821,1768744241579,-500.0,0.000179,2]
[402645823,1768744241588,-500.0,0.000179,2]
[402645825,1768744241598,-500.0,0.000179,2]
[402645827,1768744241607,-500.0,0.000179,2]
[402645829,1768744241618,-500.0,0.000179,2]
[402645831,1768744241631,-5174.0,0.000179,2]
[402645833,1768744241640,-1294.04,0.0001791,2]
[402645835,1768744241650,-1000.0,0.00017917,2]
[402645837,1768744241659,-150.0,0.00017917,2]
[402645839,1768744241669,-150.0,0.00017917,2]
[402645841,1768744241679,-500.0,0.00017918,2]
[402645844,1768744241689,-1000.0,0.00017926,2]
[402645846,1768744241698,-1000.0,0.0001793,2]
[402645848,1768744241707,-1000.0,0.0001793,2]
[402645850,1768744241717,-1000.0,0.00017938,2]
[402645852,1768744241726,-1000.0,0.00017952,2]
[402645854,1768744241735,-1000.0,0.00017952,2]
[402645856,1768744241744,-1331.0,0.00017965,2]
[402645858,1768744241753,-615.0,0.00017965,2]
[402645859,1768744241763,-3473.0,0.00017965,2]
[402645862,1768744241772,-1407.0,0.00017965,2]
[402645865,1768744241790,-412.0,0.00017965,2]
[402645867,1768744241800,-1268.0,0.00017965,2]
[402645869,1768744241810,-6562.0,0.00017965,2]
[402645871,1768744241819,-566.0,0.00017965,2]
[402645873,1768744241830,-4826.0,0.00017965,2]
[402645875,1768744241839,-661.50728786,0.0001797,2]
[402645877,1768744241848,-500.0,0.00017972,2]
[402645879,1768744241857,-765.0,0.00017973,2]
[402645881,1768744241867,-500.0,0.00017973,2]
[402645883,1768744241876,-500.0,0.00017973,2]
[402645885,1768744241886,-150.0,0.00017973,2]
[402645887,1768744241895,-500.0,0.00017973,2]
[402645889,1768744241905,-500.0,0.00017973,2]
[402645891,1768744241914,-500.0,0.00017973,2]
[402645893,1768744241925,-237.81029679,0.00017973,2]
[402645895,1768744241934,-500.0,0.00017973,2]
[402645897,1768744241944,-500.0,0.00017973,2]
[402645899,1768744241954,-500.0,0.00017973,2]
[402645901,1768744241963,-150.0,0.00017973,2]
[402645903,1768744241973,-1000.0,0.00017977,2]
[402645905,1768744241982,-761.65,0.00017988,2]
[402645907,1768744241992,-1000.0,0.0001799,2]
[402645909,1768744242002,-547.60787765,0.0001799,2]
[402645911,1768744242012,-547.60787765,0.0001799,2]
[402645913,1768744242021,-547.60787765,0.0001799,2]
[402645915,1768744242031,-500.0,0.00017998,2]
[402645917,1768744242040,-500.0,0.00017998,2]
[402645919,1768744242050,-500.0,0.00017998,2]
[402645921,1768744242059,-276.86923101,0.00017998,2]
[402645923,1768744242069,-500.0,0.00017998,2]
[402645925,1768744242078,-500.0,0.00017998,2]
[402645926,1768744242087,-500.0,0.00017998,2]
[402645927,1768744242097,-261.35951101,0.00017999,2]
[402645928,1768744242106,-500.0,0.00017999,2]
[402645929,1768744242116,-500.0,0.00017999,2]
[402645930,1768744242128,-500.0,0.00017999,2]
[402645931,1768744242138,-500.0,0.00017999,2]
[402645932,1768744242148,-500.0,0.00017999,2]
[402645933,1768744242157,-500.0,0.00017999,2]
[402645934,1768744242167,-500.0,0.00017999,2]
[402645935,1768744242177,-500.0,0.00017999,2]
[402645936,1768744242188,-500.0,0.00017999,2]
[402645937,1768744242197,-500.0,0.00017999,2]
[402645938,1768744242207,-500.0,0.00017999,2]
[402645939,1768744242217,-500.0,0.00017999,2]
[402645940,1768744242226,-500.0,0.00017999,2]
[402645942,1768744242236,-500.0,0.00017999,2]
[402645944,1768744242245,-500.0,0.00017999,2]
[402645946,1768744242255,-388.31928708,0.00017999,2]
[402645948,1768744242264,-300.0,0.00017999,2]
[402645950,1768744242274,-670.55457234,0.00017999,2]
[402645952,1768744242285,-500.0,0.00017999,2]
[402645954,1768744242295,-500.0,0.00017999,2]
[402645956,1768744242304,-562.26176022,0.00017999,2]
[402645958,1768744242315,-300.0,0.00017999,2]
[402645960,1768744242324,-300.0,0.00017999,2]
[402645962,1768744242334,-666.0,0.00017999,2]
[402645964,1768744242343,-800.0,0.00017999,2]
[402645966,1768744242355,-150.0,0.00018,2]
[402645968,1768744242364,-150.0,0.00018,2]
[402645970,1768744242374,-150.0,0.00018,2]
[402645972,1768744242383,-265.5663701,0.00018,2]
[402645974,1768744242394,-150.0,0.00018,2]
[402645977,1768744242404,-236.45405301,0.00018,2]
[402645979,1768744242413,-150.0,0.00018,2]
[402645981,1768744242423,-150.0,0.00018,2]
[402645983,1768744242432,-1002.61682753,0.00018,2]
[402645985,1768744242443,-80258.72887572,0.00018,2]
[402645987,1768744242452,-933375.04687527,0.00018,2]
[402645989,1768744242461,-386077.5263731,0.00018,2]
[402645991,1768744242471,-1000.0,0.00018,2]
[402645993,1768744242480,-935385.97619069,0.00018,2]
[402645996,1768744242500,-3608.27472446,0.00018,2]
[402645998,1768744242511,-538.9718323,0.00018,2]
[402646000,1768744242523,-832.49473915,0.00018,2]
[402646003,1768744242536,-262.6985,0.00018,2]
[402646005,1768744242548,-883.15138334,0.00018,2]
[402646007,1768744242560,-13368.03291928,0.00018,2]
[402646009,1768744242571,-2900.18651994,0.00018,2]
[402646012,1768744242583,-242028.7626935,0.00018,2]
[402646015,1768744242603,-125265.60977042,0.00018,2]
[402646018,1768744242630,-380.30947352,0.00018,2]
[402646020,1768744242642,-2189.21569252,0.00018,2]
[402646022,1768744242653,-13866.1066969,0.00018,2]
[402646137,1768744243347,-3210.0,0.00018,2]
[402646149,1768744243458,-1844.40697459,0.00018,2]